[Event "*** Titled Tuesday Blitz"]
[Site "Chess.com"]
[Date "2019.02.05"]
[Round "3"]
[White "gemarin"]
[Black "PawnEatingZombie"]
[Result "1-0"]
[WhiteElo "2079"]
[BlackElo "2123"]
[TimeControl "180+2"]
[EndTime "13:36:30 PST"]
[Termination "gemarin won by resignation"]

1. d4 {[%clk 0:03:01.9]} 1... d5 {[%clk 0:03:00.4]} 2. c4 {[%clk 0:03:03.7]}
2... e6 {[%clk 0:03:01.3]} 3. Nc3 {[%clk 0:03:04.6]} 3... Bb4 {[%clk 0:03:02.9]}
4. Nf3 {[%clk 0:03:03.1]} 4... dxc4 {[%clk 0:03:03.3]} 5. Qa4+ {[%clk
0:03:03.4]} 5... Nc6 {[%clk 0:03:03.5]} 6. Ne5 {[%clk 0:03:03.4]} 6... Ne7
{[%clk 0:02:46.1]} 7. e3 {[%clk 0:02:57.9]} 7... O-O {[%clk 0:02:45.9]} 8. Nxc6
{[%clk 0:02:53.5]} 8... Nxc6 {[%clk 0:02:46.3]} 9. Bxc4 {[%clk 0:02:54.9]} 9...
Bd7 {[%clk 0:02:15.9]} 10. Qc2 {[%clk 0:02:54]} 10... a6 {[%clk 0:02:13.1]} 11.
a3 {[%clk 0:02:50.5]} 11... Bd6 {[%clk 0:02:14]} 12. O-O {[%clk 0:02:47.1]}
12... e5 {[%clk 0:02:15]} 13. d5 {[%clk 0:02:46.3]} 13... Ne7 {[%clk 0:02:14.3]}
14. e4 {[%clk 0:02:46.3]} 14... Ng6 {[%clk 0:02:13.4]} 15. Bd2 {[%clk
0:02:31.5]} 15... Qh4 {[%clk 0:02:12.5]} 16. Rae1 {[%clk 0:02:27.9]} 16... f5
{[%clk 0:02:05.8]} 17. f3 {[%clk 0:02:12.4]} 17... f4 {[%clk 0:02:03.5]} 18. Re2
{[%clk 0:02:10.8]} 18... Bc5+ {[%clk 0:01:40.8]} 19. Kh1 {[%clk 0:02:09.6]}
19... Kh8 {[%clk 0:01:42.2]} 20. Be1 {[%clk 0:02:09.1]} 20... Qh5 {[%clk
0:01:40.9]} 21. b4 {[%clk 0:02:00.6]} 21... Bd4 {[%clk 0:01:41.9]} 22. Bf2
{[%clk 0:01:48.2]} 22... Bxf2 {[%clk 0:01:36.3]} 23. Rexf2 {[%clk 0:01:48.6]}
23... Rf6 {[%clk 0:01:37.8]} 24. Ne2 {[%clk 0:01:43.9]} 24... Ne7 {[%clk
0:01:28.6]} 25. g4 {[%clk 0:01:38.4]} 25... fxg3 {[%clk 0:01:26.7]} 26. Nxg3
{[%clk 0:01:38.8]} 26... Qh3 {[%clk 0:01:22.9]} 27. f4 {[%clk 0:01:37.3]} 27...
exf4 {[%clk 0:01:12.7]} 28. Rxf4 {[%clk 0:01:37.2]} 28... Rxf4 {[%clk
0:01:12.3]} 29. Rxf4 {[%clk 0:01:37.5]} 29... Ng6 {[%clk 0:01:10.7]} 30. Rf2
{[%clk 0:01:36.7]} 30... Ne5 {[%clk 0:01:06.3]} 31. Bf1 {[%clk 0:01:34.3]} 31...
Qh6 {[%clk 0:00:34.5]} 32. Qxc7 {[%clk 0:01:32.8]} 32... Qe3 {[%clk 0:00:32.8]}
33. Re2 {[%clk 0:01:27.2]} 33... Qf3+ {[%clk 0:00:32.2]} 34. Bg2 {[%clk
0:01:27.2]} 34... Qf6 {[%clk 0:00:32.6]} 35. Kg1 {[%clk 0:01:22.7]} 35... Rf8
{[%clk 0:00:32.2]} 36. Qc5 {[%clk 0:01:05.4]} 36... Bb5 {[%clk 0:00:30.8]} 37.
Rf2 {[%clk 0:01:05.4]} 37... Qxf2+ {[%clk 0:00:16.3]} 38. Qxf2 {[%clk
0:01:05.2]} 38... Rxf2 {[%clk 0:00:17.1]} 39. Kxf2 {[%clk 0:01:06.2]} 39... g6
{[%clk 0:00:17.6]} 40. h3 {[%clk 0:01:00.1]} 40... Kg7 {[%clk 0:00:18.6]} 41.
Ke3 {[%clk 0:01:01.5]} 41... Kf6 {[%clk 0:00:19]} 42. Kd4 {[%clk 0:01:01.4]}
42... Nd7 {[%clk 0:00:15.1]} 43. Nh1 {[%clk 0:00:51.7]} 43... h5 {[%clk
0:00:08.3]} 44. Nf2 {[%clk 0:00:52.3]} 44... g5 {[%clk 0:00:07]} 45. Nd1 {[%clk
0:00:50.6]} 45... g4 {[%clk 0:00:07]} 46. hxg4 {[%clk 0:00:50.9]} 46... hxg4
{[%clk 0:00:08]} 47. Ne3 {[%clk 0:00:51.6]} 47... Kg5 {[%clk 0:00:07.7]} 48. e5
{[%clk 0:00:52.4]} 48... Kf4 {[%clk 0:00:08.8]} 49. e6 {[%clk 0:00:53]} 49...
Nf6 {[%clk 0:00:09.4]} 50. d6 {[%clk 0:00:46.7]} 1-0

[Event "*** Titled Tuesday Blitz"]
[Site "Chess.com"]
[Date "2019.02.05"]
[Round "3"]
[White "Angry_Twin"]
[Black "leoo2001"]
[Result "0-1"]
[WhiteElo "2787"]
[BlackElo "2760"]
[TimeControl "180+2"]
[EndTime "13:36:31 PST"]
[Termination "leoo2001 won by resignation"]

1. e4 {[%clk 0:03:01.9]} 1... e5 {[%clk 0:02:58.4]} 2. Nf3 {[%clk 0:03:02.6]}
2... Nc6 {[%clk 0:02:59.7]} 3. Bc4 {[%clk 0:03:03.9]} 3... Bc5 {[%clk 0:03:00]}
4. O-O {[%clk 0:03:03.7]} 4... Nf6 {[%clk 0:03:01]} 5. d3 {[%clk 0:03:05.2]}
5... d6 {[%clk 0:03:02.2]} 6. c3 {[%clk 0:03:06]} 6... a6 {[%clk 0:03:01.2]} 7.
a4 {[%clk 0:03:07.4]} 7... Ba7 {[%clk 0:02:57.8]} 8. Re1 {[%clk 0:03:08.3]} 8...
h6 {[%clk 0:02:56.1]} 9. Nbd2 {[%clk 0:03:08.6]} 9... O-O {[%clk 0:02:53.2]} 10.
h3 {[%clk 0:03:09]} 10... Be6 {[%clk 0:02:53.3]} 11. b4 {[%clk 0:03:07.7]} 11...
Re8 {[%clk 0:02:52.1]} 12. Bxe6 {[%clk 0:03:05.3]} 12... Rxe6 {[%clk 0:02:52.7]}
13. Nb3 {[%clk 0:03:04.2]} 13... d5 {[%clk 0:02:47.3]} 14. Qc2 {[%clk
0:02:57.6]} 14... Qd7 {[%clk 0:02:10]} 15. b5 {[%clk 0:02:48.9]} 15... Ne7
{[%clk 0:02:04.9]} 16. exd5 {[%clk 0:02:47.2]} 16... Nexd5 {[%clk 0:01:44.4]}
17. Nxe5 {[%clk 0:02:47.8]} 17... Qe8 {[%clk 0:01:45.7]} 18. d4 {[%clk 0:02:49]}
18... Nd7 {[%clk 0:01:43.1]} 19. Bb2 {[%clk 0:02:29.5]} 19... Nxe5 {[%clk
0:01:28.3]} 20. dxe5 {[%clk 0:02:25.2]} 20... Rg6 {[%clk 0:01:27.8]} 21. Qe4
{[%clk 0:02:22]} 21... Qe6 {[%clk 0:01:27.4]} 22. c4 {[%clk 0:02:17.8]} 22...
Nb4 {[%clk 0:01:21.8]} 23. Qxb7 {[%clk 0:02:08.5]} 23... Bxf2+ {[%clk
0:01:03.2]} 24. Kxf2 {[%clk 0:02:06.5]} 24... Nd3+ {[%clk 0:01:04.1]} 25. Kg1
{[%clk 0:01:56]} 25... Re8 {[%clk 0:01:03.6]} 26. Qe4 {[%clk 0:01:32]} 26...
Nxb2 {[%clk 0:01:01.9]} 27. Nc5 {[%clk 0:00:52.9]} 27... Qb6 {[%clk 0:00:42.6]}
28. Qd4 {[%clk 0:00:53.5]} 28... Nd3 {[%clk 0:00:43.5]} 29. Qxd3 {[%clk
0:00:51]} 29... Qxc5+ {[%clk 0:00:45.1]} 30. Kh1 {[%clk 0:00:44.2]} 30... Rxe5
{[%clk 0:00:44.5]} 31. Rxe5 {[%clk 0:00:44.2]} 31... Qxe5 {[%clk 0:00:45.1]} 32.
Rf1 {[%clk 0:00:44.1]} 32... a5 {[%clk 0:00:40.7]} 33. Qf3 {[%clk 0:00:41.6]}
33... Kh7 {[%clk 0:00:27.4]} 34. Qxf7 {[%clk 0:00:23.7]} 34... Qe2 {[%clk
0:00:26.8]} 35. Qf3 {[%clk 0:00:24.2]} 35... Qxc4 {[%clk 0:00:27.3]} 36. Qf5
{[%clk 0:00:22.4]} 36... Qxa4 {[%clk 0:00:26.8]} 37. Rc1 {[%clk 0:00:23]} 37...
Qb4 {[%clk 0:00:21.7]} 38. Kh2 {[%clk 0:00:17]} 38... Qd2 {[%clk 0:00:21.7]} 39.
Rg1 {[%clk 0:00:17.1]} 39... a4 {[%clk 0:00:22.4]} 40. h4 {[%clk 0:00:17.8]}
40... Qd6+ {[%clk 0:00:21.5]} 41. g3 {[%clk 0:00:19.1]} 41... Qe6 {[%clk
0:00:22.7]} 42. Qc2 {[%clk 0:00:19.9]} 42... h5 {[%clk 0:00:23.4]} 43. Qxa4
{[%clk 0:00:20.5]} 43... Rg4 {[%clk 0:00:24.5]} 44. Qc2+ {[%clk 0:00:20.5]}
44... Kh6 {[%clk 0:00:25.7]} 45. Qxc7 {[%clk 0:00:21.3]} 45... Re4 {[%clk
0:00:24]} 46. Qc6 {[%clk 0:00:22.4]} 46... Qxc6 {[%clk 0:00:23.5]} 47. bxc6
{[%clk 0:00:24.3]} 47... Rc4 {[%clk 0:00:25.1]} 0-1

[Event "*** Titled Tuesday Blitz"]
[Site "Chess.com"]
[Date "2019.02.05"]
[Round "3"]
[White "Lagmantr"]
[Black "Kurai"]
[Result "1-0"]
[WhiteElo "2512"]
[BlackElo "2486"]
[TimeControl "180+2"]
[EndTime "13:36:31 PST"]
[Termination "Lagmantr won by resignation"]

1. e4 {[%clk 0:02:51.4]} 1... e5 {[%clk 0:03:00.6]} 2. Nf3 {[%clk 0:02:52.5]}
2... Nc6 {[%clk 0:03:02.2]} 3. Nc3 {[%clk 0:02:54]} 3... Nf6 {[%clk 0:03:02.8]}
4. Be2 {[%clk 0:02:55.1]} 4... d6 {[%clk 0:02:53.6]} 5. d4 {[%clk 0:02:55.8]}
5... Be7 {[%clk 0:02:50.7]} 6. dxe5 {[%clk 0:02:56.1]} 6... Nxe5 {[%clk
0:02:51.5]} 7. Nxe5 {[%clk 0:02:55.7]} 7... dxe5 {[%clk 0:02:53.4]} 8. Qxd8+
{[%clk 0:02:56.4]} 8... Bxd8 {[%clk 0:02:55.3]} 9. O-O {[%clk 0:02:57]} 9... O-O
{[%clk 0:02:56.1]} 10. f4 {[%clk 0:02:56.7]} 10... exf4 {[%clk 0:02:56.2]} 11.
Bxf4 {[%clk 0:02:58.5]} 11... c6 {[%clk 0:02:57.5]} 12. Rad1 {[%clk 0:02:58.8]}
12... Re8 {[%clk 0:02:28.9]} 13. Kh1 {[%clk 0:02:33.5]} 13... Bg4 {[%clk
0:02:10.1]} 14. Bxg4 {[%clk 0:02:31.6]} 14... Nxg4 {[%clk 0:02:10.6]} 15. h3
{[%clk 0:02:32]} 15... Ne5 {[%clk 0:01:10]} 16. Bxe5 {[%clk 0:02:31.9]} 16...
Rxe5 {[%clk 0:01:11.9]} 17. Rd7 {[%clk 0:02:33.1]} 17... Re7 {[%clk 0:01:13.2]}
18. Rfd1 {[%clk 0:02:34]} 18... Rxd7 {[%clk 0:01:14.1]} 19. Rxd7 {[%clk
0:02:35.9]} 19... Rb8 {[%clk 0:01:15.5]} 20. e5 {[%clk 0:02:35.6]} 20... Kf8
{[%clk 0:01:07.8]} 21. Ne4 {[%clk 0:02:35.5]} 21... Be7 {[%clk 0:00:59.9]} 22.
Nd6 {[%clk 0:02:29]} 22... Bxd6 {[%clk 0:00:59.7]} 23. exd6 {[%clk 0:02:29.9]}
23... Ke8 {[%clk 0:00:53.1]} 24. Re7+ {[%clk 0:02:28]} 24... Kf8 {[%clk
0:00:51.7]} 25. c4 {[%clk 0:02:27.6]} 25... c5 {[%clk 0:00:50.6]} 26. Rd7 {[%clk
0:02:15.8]} 26... a5 {[%clk 0:00:44.6]} 27. Kh2 {[%clk 0:01:53.5]} 27... b6
{[%clk 0:00:45.5]} 28. Rc7 {[%clk 0:01:50.7]} 28... Ke8 {[%clk 0:00:41.1]} 29.
Kg3 {[%clk 0:01:45.7]} 29... Rd8 {[%clk 0:00:42.1]} 30. Rc6 {[%clk 0:01:44.1]}
30... Rb8 {[%clk 0:00:43.3]} 31. Kf4 {[%clk 0:01:36.1]} 31... Kd7 {[%clk
0:00:44.3]} 32. Rc7+ {[%clk 0:01:37]} 32... Ke6 {[%clk 0:00:45.8]} 33. Re7+
{[%clk 0:01:37.9]} 33... Kf6 {[%clk 0:00:43.4]} 34. Ke4 {[%clk 0:01:34.7]} 34...
b5 {[%clk 0:00:39.4]} 35. cxb5 {[%clk 0:01:34.9]} 35... Rxb5 {[%clk 0:00:40.1]}
36. Kd5 {[%clk 0:01:34.9]} 36... Rxb2 {[%clk 0:00:40.5]} 37. Kxc5 {[%clk
0:01:27]} 37... Rxa2 {[%clk 0:00:39.4]} 38. g4 {[%clk 0:01:19.7]} 38... Rc2+
{[%clk 0:00:35.1]} 39. Kb6 {[%clk 0:01:17]} 39... Rd2 {[%clk 0:00:36.2]} 40. Kc7
{[%clk 0:01:16]} 40... Rc2+ {[%clk 0:00:37.3]} 41. Kb8 {[%clk 0:01:10.6]} 41...
Rd2 {[%clk 0:00:37.3]} 42. Kc7 {[%clk 0:01:10.5]} 42... Rc2+ {[%clk 0:00:38.4]}
43. Kd8 {[%clk 0:01:07]} 43... Rd2 {[%clk 0:00:38.9]} 44. d7 {[%clk 0:01:07.8]}
44... a4 {[%clk 0:00:35.7]} 45. Ke8 {[%clk 0:01:05.7]} 45... h5 {[%clk 0:00:21]}
46. gxh5 {[%clk 0:01:02.3]} 46... Kg5 {[%clk 0:00:21.2]} 47. Rxf7 {[%clk
0:01:02.7]} 47... a3 {[%clk 0:00:19.5]} 48. d8=Q+ {[%clk 0:01:02.8]} 48... Rxd8+
{[%clk 0:00:20]} 49. Kxd8 {[%clk 0:01:04.7]} 49... a2 {[%clk 0:00:19.7]} 50. Ra7
{[%clk 0:01:05.4]} 50... Kxh5 {[%clk 0:00:20.2]} 51. Rxa2 {[%clk 0:01:06.1]}
51... g5 {[%clk 0:00:21.6]} 52. Ra4 {[%clk 0:01:06.6]} 1-0

[Event "*** Titled Tuesday Blitz"]
[Site "Chess.com"]
[Date "2019.02.05"]
[Round "3"]
[White "Vugar_Manafov"]
[Black "AndrBaryshpolets"]
[Result "0-1"]
[WhiteElo "2382"]
[BlackElo "2605"]
[TimeControl "180+2"]
[EndTime "13:36:33 PST"]
[Termination "AndrBaryshpolets won by resignation"]

1. d4 {[%clk 0:03:01.9]} 1... Nf6 {[%clk 0:03:00.5]} 2. Nf3 {[%clk 0:03:00.7]}
2... d5 {[%clk 0:03:00.4]} 3. c4 {[%clk 0:03:00.6]} 3... e6 {[%clk 0:03:01.8]}
4. Nc3 {[%clk 0:03:00.3]} 4... c6 {[%clk 0:03:02.8]} 5. Bf4 {[%clk 0:03:01.1]}
5... dxc4 {[%clk 0:02:59.2]} 6. e4 {[%clk 0:02:58.2]} 6... b5 {[%clk 0:02:58.1]}
7. Qc2 {[%clk 0:02:53.3]} 7... Bb7 {[%clk 0:02:53.5]} 8. O-O-O {[%clk
0:02:50.4]} 8... Na6 {[%clk 0:02:40.1]} 9. Ne5 {[%clk 0:02:35.9]} 9... Be7
{[%clk 0:02:35.8]} 10. g4 {[%clk 0:02:21.8]} 10... O-O {[%clk 0:02:35.2]} 11. g5
{[%clk 0:02:22.5]} 11... Nh5 {[%clk 0:02:20.2]} 12. Be3 {[%clk 0:02:21.8]} 12...
Bxg5 {[%clk 0:02:21.1]} 13. Rg1 {[%clk 0:02:22.8]} 13... Bxe3+ {[%clk
0:01:58.7]} 14. fxe3 {[%clk 0:02:24.7]} 14... f6 {[%clk 0:01:49.6]} 15. Ng4
{[%clk 0:02:21.6]} 15... Qe7 {[%clk 0:01:43.7]} 16. Qg2 {[%clk 0:02:17.1]} 16...
e5 {[%clk 0:01:34.8]} 17. Be2 {[%clk 0:02:02.3]} 17... Kh8 {[%clk 0:01:27.4]}
18. dxe5 {[%clk 0:01:55.6]} 18... fxe5 {[%clk 0:01:26.9]} 19. Nh6 {[%clk
0:01:43]} 19... gxh6 {[%clk 0:01:16.2]} 20. Bxh5 {[%clk 0:01:39]} 20... Nc5
{[%clk 0:01:17.6]} 21. Be2 {[%clk 0:01:27.5]} 21... Rad8 {[%clk 0:01:18]} 22.
Rxd8 {[%clk 0:01:23.2]} 22... Rxd8 {[%clk 0:01:19.9]} 23. Qh3 {[%clk 0:01:20.9]}
23... b4 {[%clk 0:01:08.5]} 24. Nd1 {[%clk 0:01:13]} 24... Nd3+ {[%clk
0:01:03.5]} 25. Kb1 {[%clk 0:01:02.8]} 25... c5 {[%clk 0:01:02.7]} 26. Bxd3
{[%clk 0:00:37.1]} 26... cxd3 {[%clk 0:01:03.5]} 27. Qxh6 {[%clk 0:00:37.7]}
27... Bxe4 {[%clk 0:01:01.7]} 28. Qh5 {[%clk 0:00:23.3]} 28... d2+ {[%clk
0:00:56.5]} 29. Ka1 {[%clk 0:00:22.8]} 29... c4 {[%clk 0:00:44.6]} 30. Qg4
{[%clk 0:00:20.4]} 30... Bd3 {[%clk 0:00:27.5]} 31. h4 {[%clk 0:00:10.9]} 31...
Qf7 {[%clk 0:00:19.8]} 32. Qg5 {[%clk 0:00:11.2]} 32... Re8 {[%clk 0:00:18.1]}
33. h5 {[%clk 0:00:12]} 33... Qe7 {[%clk 0:00:16.3]} 34. Qg4 {[%clk 0:00:10]}
34... a5 {[%clk 0:00:15.4]} 35. h6 {[%clk 0:00:08.4]} 35... a4 {[%clk
0:00:16.7]} 36. Qh5 {[%clk 0:00:07.1]} 36... Rf8 {[%clk 0:00:11]} 37. Rg7 {[%clk
0:00:05.9]} 37... Qf6 {[%clk 0:00:11.5]} 38. Qg4 {[%clk 0:00:06]} 38... a3
{[%clk 0:00:10.6]} 39. Qg3 {[%clk 0:00:03.6]} 39... axb2+ {[%clk 0:00:09.9]} 40.
Nxb2 {[%clk 0:00:05.2]} 40... Qf1+ {[%clk 0:00:09.4]} 41. Nd1 {[%clk 0:00:05.6]}
41... Qxd1+ {[%clk 0:00:10.6]} 0-1

[Event "*** Titled Tuesday Blitz"]
[Site "Chess.com"]
[Date "2019.02.05"]
[Round "3"]
[White "HanSchut"]
[Black "xberli"]
[Result "0-1"]
[WhiteElo "2292"]
[BlackElo "2530"]
[TimeControl "180+2"]
[EndTime "13:36:33 PST"]
[Termination "xberli won by resignation"]

1. e4 {[%clk 0:02:36.9]} 1... c5 {[%clk 0:03:00.3]} 2. Nf3 {[%clk 0:02:36.7]}
2... d6 {[%clk 0:03:01.2]} 3. d4 {[%clk 0:02:38.2]} 3... cxd4 {[%clk 0:03:03.1]}
4. Nxd4 {[%clk 0:02:39.3]} 4... Nf6 {[%clk 0:03:04.6]} 5. f3 {[%clk 0:02:40.9]}
5... g6 {[%clk 0:03:04.7]} 6. c4 {[%clk 0:02:41.3]} 6... Bg7 {[%clk 0:03:06.2]}
7. Be3 {[%clk 0:02:42.8]} 7... O-O {[%clk 0:03:07.8]} 8. Qd2 {[%clk 0:02:44.3]}
8... Nc6 {[%clk 0:03:09.1]} 9. Nc3 {[%clk 0:02:45.7]} 9... Bd7 {[%clk
0:03:10.3]} 10. Rc1 {[%clk 0:02:45.8]} 10... Rc8 {[%clk 0:03:11.8]} 11. Be2
{[%clk 0:02:46.7]} 11... Re8 {[%clk 0:03:12.8]} 12. O-O {[%clk 0:02:46.5]} 12...
a6 {[%clk 0:03:14.2]} 13. Rfd1 {[%clk 0:02:46.2]} 13... Qa5 {[%clk 0:03:15]} 14.
Rc2 {[%clk 0:02:35.5]} 14... h5 {[%clk 0:03:15]} 15. Rb1 {[%clk 0:02:35.3]}
15... Kh7 {[%clk 0:03:14.4]} 16. b4 {[%clk 0:02:08.1]} 16... Qd8 {[%clk
0:02:51.3]} 17. Nxc6 {[%clk 0:01:36.5]} 17... Bxc6 {[%clk 0:02:47.2]} 18. a4
{[%clk 0:01:34.1]} 18... Bd7 {[%clk 0:02:39.6]} 19. Bf1 {[%clk 0:01:22.5]} 19...
Be6 {[%clk 0:02:40.2]} 20. Nd5 {[%clk 0:01:00.5]} 20... Nxd5 {[%clk 0:02:27.5]}
21. exd5 {[%clk 0:00:59.4]} 21... Bf5 {[%clk 0:02:27.6]} 22. Bd3 {[%clk
0:01:00.9]} 22... Qd7 {[%clk 0:02:26.1]} 23. a5 {[%clk 0:00:57.3]} 23... e5
{[%clk 0:02:17]} 24. Rbc1 {[%clk 0:00:44.5]} 24... e4 {[%clk 0:02:00.6]} 25.
fxe4 {[%clk 0:00:44.9]} 25... Bxe4 {[%clk 0:02:02.5]} 26. Bxe4 {[%clk
0:00:36.3]} 26... Rxe4 {[%clk 0:02:04.4]} 27. Bf2 {[%clk 0:00:33.2]} 27... Rce8
{[%clk 0:02:00.3]} 28. Qd3 {[%clk 0:00:24.8]} 28... Bh6 {[%clk 0:01:58.4]} 29.
Rf1 {[%clk 0:00:20.1]} 29... h4 {[%clk 0:01:49.2]} 30. c5 {[%clk 0:00:21.3]}
30... h3 {[%clk 0:01:47.4]} 31. c6 {[%clk 0:00:21.9]} 31... bxc6 {[%clk
0:01:46.7]} 32. dxc6 {[%clk 0:00:22.6]} 32... Qg4 {[%clk 0:01:46.8]} 33. Qxh3
{[%clk 0:00:24]} 33... Qxh3 {[%clk 0:01:47.3]} 34. gxh3 {[%clk 0:00:25.9]} 34...
Rxb4 {[%clk 0:01:46.1]} 35. c7 {[%clk 0:00:26.7]} 35... Rc8 {[%clk 0:01:46.4]}
36. Bb6 {[%clk 0:00:26.5]} 36... Kg8 {[%clk 0:01:42.8]} 37. Rd1 {[%clk
0:00:24.8]} 37... Bf4 {[%clk 0:01:42.2]} 38. Kg2 {[%clk 0:00:25.2]} 38... Be5
{[%clk 0:01:41.4]} 39. Rf2 {[%clk 0:00:21.6]} 39... Kf8 {[%clk 0:01:41]} 40. Re2
{[%clk 0:00:22.6]} 40... f6 {[%clk 0:01:38]} 41. Kf3 {[%clk 0:00:22.1]} 41...
Ke7 {[%clk 0:01:39.2]} 42. Re4 {[%clk 0:00:23.1]} 42... Rb3+ {[%clk 0:01:37.5]}
43. Re3 {[%clk 0:00:24.5]} 43... Rb2 {[%clk 0:01:36.9]} 44. Re2 {[%clk
0:00:23.7]} 44... Rb5 {[%clk 0:01:35.7]} 45. Rd3 {[%clk 0:00:22.4]} 45... Ke6
{[%clk 0:01:36.4]} 46. Red2 {[%clk 0:00:22.5]} 46... d5 {[%clk 0:01:36.6]} 47.
Rc2 {[%clk 0:00:22.4]} 47... Kd7 {[%clk 0:01:33]} 48. Rcd2 {[%clk 0:00:19.8]}
48... Kd6 {[%clk 0:01:32.2]} 49. Rc2 {[%clk 0:00:19.3]} 49... f5 {[%clk
0:01:31.4]} 50. h4 {[%clk 0:00:20.1]} 50... Rb1 {[%clk 0:01:30.4]} 51. Kg2
{[%clk 0:00:16.6]} 51... Rb2 {[%clk 0:01:27.6]} 52. Rxb2 {[%clk 0:00:17.2]}
52... Bxb2 {[%clk 0:01:29.5]} 53. Rg3 {[%clk 0:00:18.2]} 53... Rg8 {[%clk
0:01:25.9]} 54. h5 {[%clk 0:00:19.4]} 54... g5 {[%clk 0:01:25.7]} 55. h6 {[%clk
0:00:20.6]} 55... g4 {[%clk 0:01:23.9]} 56. Rb3 {[%clk 0:00:21.2]} 56... Be5
{[%clk 0:01:22.2]} 57. h7 {[%clk 0:00:20.4]} 57... Rc8 {[%clk 0:01:20.9]} 58.
Bd4 {[%clk 0:00:19.2]} 58... Bxd4 {[%clk 0:01:21]} 59. Rb8 {[%clk 0:00:18.9]}
59... Rxc7 {[%clk 0:01:21.6]} 60. Rd8+ {[%clk 0:00:17]} 60... Kc5 {[%clk
0:01:21.6]} 61. h8=Q {[%clk 0:00:18.9]} 61... Bxh8 {[%clk 0:01:21.7]} 62. Rxh8
{[%clk 0:00:20.8]} 62... Rd7 {[%clk 0:01:21.1]} 0-1

[Event "*** Titled Tuesday Blitz"]
[Site "Chess.com"]
[Date "2019.02.05"]
[Round "3"]
[White "snowlord"]
[Black "Abund"]
[Result "0-1"]
[WhiteElo "2700"]
[BlackElo "2542"]
[TimeControl "180+2"]
[EndTime "13:36:35 PST"]
[Termination "Abund won by resignation"]

1. e4 {[%clk 0:02:20.8]} 1... c5 {[%clk 0:02:57.7]} 2. Nf3 {[%clk 0:02:21.2]}
2... Nc6 {[%clk 0:02:59]} 3. d4 {[%clk 0:02:20.5]} 3... cxd4 {[%clk 0:03:00.4]}
4. Nxd4 {[%clk 0:02:22.4]} 4... Nf6 {[%clk 0:03:01.8]} 5. Nc3 {[%clk 0:02:23.4]}
5... e5 {[%clk 0:03:03.3]} 6. Ndb5 {[%clk 0:02:24.3]} 6... d6 {[%clk 0:03:04.8]}
7. Bg5 {[%clk 0:02:25.5]} 7... a6 {[%clk 0:03:05.9]} 8. Na3 {[%clk 0:02:27]}
8... b5 {[%clk 0:03:07.2]} 9. Nd5 {[%clk 0:02:28.3]} 9... Be7 {[%clk 0:03:07.9]}
10. Bxf6 {[%clk 0:02:29.9]} 10... Bxf6 {[%clk 0:03:08.3]} 11. c3 {[%clk
0:02:31.8]} 11... Rb8 {[%clk 0:03:08.4]} 12. Nc2 {[%clk 0:02:32.8]} 12... Bg5
{[%clk 0:03:03.7]} 13. h4 {[%clk 0:02:32]} 13... Bxh4 {[%clk 0:03:04.5]} 14.
Ncb4 {[%clk 0:02:29.3]} 14... Nxb4 {[%clk 0:02:25.4]} 15. cxb4 {[%clk
0:02:31.2]} 15... Be6 {[%clk 0:02:17.7]} 16. a4 {[%clk 0:02:26.4]} 16... Bg5
{[%clk 0:01:56.7]} 17. axb5 {[%clk 0:02:19.7]} 17... axb5 {[%clk 0:01:52.1]} 18.
Bd3 {[%clk 0:01:56.4]} 18... Bxd5 {[%clk 0:01:36.1]} 19. exd5 {[%clk 0:01:56.5]}
19... h6 {[%clk 0:01:35.1]} 20. Ra6 {[%clk 0:01:20.2]} 20... O-O {[%clk
0:01:19.2]} 21. g3 {[%clk 0:01:20.9]} 21... e4 {[%clk 0:01:12.5]} 22. Bxe4
{[%clk 0:00:41.2]} 22... Re8 {[%clk 0:00:58.2]} 23. Qg4 {[%clk 0:00:40.6]} 23...
Qc8 {[%clk 0:00:40]} 24. Qxc8 {[%clk 0:00:31.4]} 24... Rbxc8 {[%clk 0:00:39]}
25. O-O {[%clk 0:00:20.9]} 25... Rxe4 {[%clk 0:00:38]} 26. Rxd6 {[%clk 0:00:18]}
26... Rxb4 {[%clk 0:00:38.5]} 27. Rd1 {[%clk 0:00:08.4]} 27... Rxb2 {[%clk
0:00:38.1]} 28. Rb6 {[%clk 0:00:09.5]} 28... Rd8 {[%clk 0:00:30.3]} 29. d6
{[%clk 0:00:10.3]} 29... Rd2 {[%clk 0:00:31]} 30. Rxd2 {[%clk 0:00:09.6]} 30...
Bxd2 {[%clk 0:00:32.9]} 31. Kg2 {[%clk 0:00:07.7]} 31... b4 {[%clk 0:00:31.6]}
32. Kf3 {[%clk 0:00:08]} 32... f5 {[%clk 0:00:30.6]} 33. g4 {[%clk 0:00:07.2]}
33... fxg4+ {[%clk 0:00:20.9]} 34. Kxg4 {[%clk 0:00:08]} 34... Kf7 {[%clk
0:00:22.3]} 35. Kf5 {[%clk 0:00:08.8]} 35... g6+ {[%clk 0:00:22.9]} 36. Ke5
{[%clk 0:00:10.1]} 36... Bc3+ {[%clk 0:00:23.3]} 37. Kd5 {[%clk 0:00:10]} 37...
Kf6 {[%clk 0:00:22.9]} 38. Kc5 {[%clk 0:00:04.2]} 38... Ke6 {[%clk 0:00:23.3]}
39. f4 {[%clk 0:00:04.2]} 39... Rc8+ {[%clk 0:00:23.4]} 40. Kb5 {[%clk
0:00:04.7]} 40... Kd7 {[%clk 0:00:24.2]} 41. Ka4 {[%clk 0:00:04.8]} 41... Rc6
{[%clk 0:00:24.5]} 42. Rb7+ {[%clk 0:00:06.4]} 42... Kxd6 {[%clk 0:00:25.5]} 43.
Rh7 {[%clk 0:00:08.3]} 43... Kc5 {[%clk 0:00:25.9]} 44. Rxh6 {[%clk 0:00:08.6]}
44... Kc4 {[%clk 0:00:26.4]} 45. Ka5 {[%clk 0:00:06.5]} 45... b3+ {[%clk
0:00:27.2]} 0-1